[Event "2nd Gujarat Open 2019"]
[Site "Ahmedabad, Gujarat"]
[Date "2019.09.26"]
[Round "7.14"]
[White "Thanki, Hemal Karsanji"]
[Black "Abu Sufian, Shakil"]
[Result "0-1"]
[ECO "A06"]
[WhiteElo "2098"]
[BlackElo "2255"]
[Annotator "NA"]
[PlyCount "132"]
[EventDate "2019.09.22"]
[EventType "swiss"]
[EventCountry "IND"]
[SourceTitle "playchess.com"]
[Source "ChessBase"]
[SourceQuality "1"]
[TimeControl "5400+30"]

1. g3 {[%emt 0:00:00]} d5 {[%emt 0:00:00]} 2. Nf3 {[%emt 0:00:00]} Bg4 {[%emt 0:00:07]} 3. Bg2 {[%emt 0:00:03]} c6 {[%emt 0:00:19]} 4. c4 {[%emt 0:01:10]} e6 {[%emt 0:01:00]} 5. Ne5 {[%emt 0:01:37]} Bf5 {[%emt 0:01:37]} 6. cxd5 {[%emt 0:02:44]} exd5 {[%emt 0:01:07]} 7. Qb3 {[%emt 0:00:51]} Nd7 {[%emt 0:05:30]} 8. d4 {[%emt 0:04:12]} Qb6 {[%emt 0:07:50]} 9. Qe3 {[%emt 0:02:34]} Be7 {[%emt 0:01:25]} 10. Nc3 {[%emt 0:01:37]} Ngf6 {[%emt 0:01:50]} 11. O-O {[%emt 0:01:36]} Nxe5 {[%emt 0:04:19]} 12. Qxe5 {[%emt 0:00:11]} Be6 {[%emt 0:00:22]} 13. Na4 {[%emt 0:13:49]} Qa5 {[%emt 0:08:40]} 14. b3 {[%emt 0:06:07]} O-O {[%emt 0:00:34]} 15. Rd1 {[%emt 0:02:18]} Rfe8 {[%emt 0:01:17]} 16. Bd2 {[%emt 0:06:03]} Qd8 {[%emt 0:01:25]} 17. Bf4 {[%emt 0:03:57]} Ba3 {[%emt 0:14:45]} 18. Bg5 {[%emt 0:22:17]} Bg4 {[%emt 0:04:58]} 19. Bxf6 {[%emt 0:00:02]} Qxf6 {[%emt 0:01:02]} 20. Qxf6 {[%emt 0:00:09]} gxf6 {[%emt 0:00:01]} 21. f3 {[%emt 0:04:01]} Bf5 {[%emt 0:00:10]} 22. Rd2 {[%emt 0:06:17]} Bb4 {[%emt 0:03:59]} 23. Rb2 {[%emt 0:00:02]} b5 {[%emt 0:07:35]} 24. a3 {[%emt 0:00:01]} Bf8 {[%emt 0:00:15]} 25. Nc5 {[%emt 0:01:59]} Bxc5 {[%emt 0:01:42]} 26. dxc5 Re3 {[%emt 0:00:15]} 27. g4 {[%emt 0:03:31]} Bd7 {[%emt 0:01:51]} 28. Rc1 {[%emt 0:02:57]} Rae8 {[%emt 0:04:09]} 29. Kf2 {[%emt 0:00:19]} Kg7 {[%emt 0:00:46]} 30. Rcc2 {[%emt 0:02:28]} f5 {[%emt 0:03:56]} 31. h3 {[%emt 0:01:47]} f4 {[%emt 0:01:21]} 32. a4 {[%emt 0:00:19]} b4 {[%emt 0:00:57]} 33. a5 {[%emt 0:00:28]} Rb8 {[%emt 0:01:37]} 34. Rd2 {[%emt 0:00:01]} Rc3 {[%emt 0:00:10]} 35. Rd4 {[%emt 0:01:21]} Rxc5 {[%emt 0:00:08]} 36. Rxf4 {[%emt 0:01:14]} Rxa5 {[%emt 0:00:06]} 37. e4 {[%emt 0:02:40]} d4 {[%emt 0:04:02]} 38. Bf1 {[%emt 0:02:25]} Be6 {[%emt 0:00:23]} 39. Bd3 {[%emt 0:01:45]} f6 {[%emt 0:01:51]} 40. h4 {[%emt 0:00:29]} h6 {[%emt 0:00:10]} 41. Ke1 {[%emt 0:01:19]} Rc5 {[%emt 0:02:07]} 42. Kd2 {[%emt 0:00:33]} Rc3 {[%emt 0:00:14]} 43. Bc2 {[%emt 0:01:30]} a5 {[%emt 0:00:34]} 44. Bd1 {[%emt 0:00:25]} Rb5 {[%emt 0:02:34]} 45. Ke1 {[%emt 0:01:17]} Rbc5 {[%emt 0:00:26]} 46. Rd2 {[%emt 0:00:14]} d3 {[%emt 0:01:35]} 47. Rb2 {[%emt 0:00:24]} Re5 {[%emt 0:00:49]} 48. Kd2 {[%emt 0:00:35]} c5 {[%emt 0:00:26]} 49. Rb1 {[%emt 0:00:58]} c4 {[%emt 0:00:55]} 50. bxc4 {[%emt 0:00:02]} Bxc4 {[%emt 0:00:05]} 51. Ba4 {[%emt 0:00:07]} Ra3 {[%emt 0:01:38]} 52. Rc1 {[%emt 0:00:57]} Bf7 {[%emt 0:02:23]} 53. Bc6 {[%emt 0:01:35]} b3 {[%emt 0:01:29]} 54. Rb1 {[%emt 0:00:38]} Rc5 {[%emt 0:00:56]} 55. Bd5 {[%emt 0:00:01]} Bxd5 {[%emt 0:00:46]} 56. exd5 {[%emt 0:00:01]} Rxd5 {[%emt 0:00:06]} 57. Rc4 {[%emt 0:00:57]} Rd7 {[%emt 0:00:59]} 58. Rb2 {[%emt 0:00:43]} a4 {[%emt 0:01:15]} 59. Rc3 {[%emt 0:00:26]} Ra1 {[%emt 0:00:20]} 60. Rxd3 {[%emt 0:00:16]} Rd1+ {[%emt 0:00:27]} 61. Kxd1 {[%emt 0:00:02]} Rxd3+ {[%emt 0:00:04]} 62. Kc1 {[%emt 0:00:51]} a3 {[%emt 0:01:37]} 63. Re2 {[%emt 0:00:02]} b2+ {[%emt 0:01:43]} 64. Kc2 {[%emt 0:00:06]} Rd1 {[%emt 0:00:13]} 65. Re7+ {[%emt 0:00:07]} Kf8 {[%emt 0:00:01]} 66. Rb7 {[%emt 0:00:18]} Rc1+ {[%emt 0:00:05]} 0-1

[Event "2nd Gujarat Open 2019"]
[Site "Ahmedabad, Gujarat"]
[Date "2019.09.26"]
[Round "7.15"]
[White "Patil, Pratik"]
[Black "Siddharth, Jagadeesh"]
[Result "1-0"]
[ECO "B15"]
[WhiteElo "2187"]
[BlackElo "2362"]
[Annotator "NA"]
[PlyCount "85"]
[EventDate "2019.09.22"]
[EventType "swiss"]
[EventCountry "IND"]
[SourceTitle "playchess.com"]
[Source "ChessBase"]
[SourceQuality "1"]
[TimeControl "5400+30"]

1. e4 c6 2. d4 d5 3. Nd2 dxe4 4. Nxe4 Nf6 5. Nxf6+ exf6 6. c3 Bd6 7. Bd3 O-O 8. Qc2 Re8+ 9. Ne2 h5 10. Be3 Nd7 11. O-O-O Nf8 12. Kb1 Be6 13. h3 Bd5 14. Rdg1 b5 15. Nf4 Bxf4 16. Bxf4 Ng6 17. Bd2 Qd6 18. f3 Nf4 19. Bxf4 Qxf4 20. Re1 Kf8 21. Qf2 h4 22. Rxe8+ Rxe8 23. Re1 g5 24. Rxe8+ Kxe8 25. Kc2 a5 26. b3 Be6 27. Be4 Kd7 28. Qd2 Qd6 29. Qd3 Qh2 30. Qd2 Kd6 31. c4 bxc4 32. bxc4 Bxc4 33. Qxa5 Kd7 34. Qa7+ Qc7 35. Bf5+ Kd8 36. Qc5 Qf4 37. Qf8+ Kc7 38. Qe7+ Kb8 39. Qd8+ Ka7 40. Bc8 Bb5 41. Qe7+ Kb6 42. Qb7+ Ka5 43. Qa7+ 1-0

[Event "2nd Gujarat Open 2019"]
[Site "Ahmedabad, Gujarat"]
[Date "2019.09.26"]
[Round "7.16"]
[White "Nitin, S.."]
[Black "Anadkat Kartavya"]
[Result "1-0"]
[ECO "A05"]
[WhiteElo "2361"]
[BlackElo "2088"]
[Annotator "NA"]
[PlyCount "79"]
[EventDate "2019.09.22"]
[EventType "swiss"]
[EventCountry "IND"]
[SourceTitle "playchess.com"]
[Source "ChessBase"]
[SourceQuality "1"]
[TimeControl "5400+30"]

1. Nf3 {[%emt 0:01:06]} Nf6 {[%emt 0:00:00]} 2. b3 {[%emt 0:00:06]} g6 {[%emt 0:00:43]} 3. Bb2 {[%emt 0:00:09]} Bg7 {[%emt 0:00:03]} 4. g3 {[%emt 0:00:23]} O-O {[%emt 0:00:07]} 5. Bg2 {[%emt 0:00:05]} d6 {[%emt 0:00:21]} 6. d4 {[%emt 0:00:23]} c6 {[%emt 0:00:38]} 7. O-O {[%emt 0:00:38]} Bf5 {[%emt 0:05:27]} 8. Nh4 {[%emt 0:01:56]} Be6 {[%emt 0:03:16]} 9. e4 {[%emt 0:00:51]} d5 {[%emt 0:14:22]} 10. e5 {[%emt 0:00:28]} Ne8 {[%emt 0:00:32]} 11. Qe2 {[%emt 0:05:03]} Nc7 {[%emt 0:02:24]} 12. f4 {[%emt 0:02:06]} f5 {[%emt 0:01:28]} 13. exf6 {[%emt 0:00:59]} exf6 {[%emt 0:00:25]} 14. f5 {[%emt 0:00:08]} Bf7 {[%emt 0:00:23]} 15. Nd2 {[%emt 0:06:58]} g5 {[%emt 0:04:21]} 16. Nhf3 {[%emt 0:00:32]} Re8 {[%emt 0:01:28]} 17. Qf2 {[%emt 0:02:33]} Nba6 {[%emt 0:01:29]} 18. a4 {[%emt 0:14:08]} h5 {[%emt 0:04:21]} 19. Rae1 {[%emt 0:14:18]} Qd7 {[%emt 0:01:36]} 20. Ne5 {[%emt 0:00:58]} fxe5 {[%emt 0:09:19]} 21. dxe5 {[%emt 0:00:21]} Rf8 {[%emt 0:19:49]} 22. Qe3 {[%emt 0:03:40]} Qd8 {[%emt 0:02:25]} 23. h4 {[%emt 0:08:35]} g4 {[%emt 0:01:58]} 24. f6 {[%emt 0:02:39]} Bh8 {[%emt 0:07:26]} 25. Qg5+ {[%emt 0:01:44]} Kh7 {[%emt 0:00:04]} 26. e6 {[%emt 0:00:50]} Rg8 {[%emt 0:01:46]} 27. Qf5+ {[%emt 0:04:05]} Bg6 {[%emt 0:00:05]} 28. Qf4 {[%emt 0:02:42]} Qc8 {[%emt 0:03:24]} 29. Bc1 {[%emt 0:01:53]} Qf8 {[%emt 0:02:57]} 30. f7 {[%emt 0:02:33]} Bg7 {[%emt 0:04:47]} 31. Ne4 {[%emt 0:09:59]} dxe4 {[%emt 0:02:52]} 32. Bxe4 {[%emt 0:00:22]} Qc5+ {[%emt 0:02:03]} 33. Be3 {[%emt 0:02:34]} Qe5 {[%emt 0:01:03]} 34. fxg8=Q+ Rxg8 {[%emt 0:00:02]} 35. Bxg6+ {[%emt 0:02:35]} Kxg6 {[%emt 0:00:03]} 36. Qf7+ {[%emt 0:00:35]} Kh7 {[%emt 0:00:01]} 37. Bf2 {[%emt 0:01:33]} Qa5 {[%emt 0:03:25]} 38. Bd4 {[%emt 0:01:19]} Qd5 {[%emt 0:01:21]} 39. c3 {[%emt 0:00:23]} Kh8 {[%emt 0:00:30]} 40. Rf6 {[%emt 0:00:42]} 1-0

[Event "2nd Gujarat Open 2019"]
[Site "Ahmedabad, Gujarat"]
[Date "2019.09.26"]
[Round "7.17"]
[White "Rathnakaran, K.."]
[Black "Kiran, Manisha Mohanty"]
[Result "1/2-1/2"]
[ECO "B50"]
[WhiteElo "2325"]
[BlackElo "2102"]
[Annotator "NA"]
[PlyCount "80"]
[EventDate "2019.09.22"]
[EventType "swiss"]
[EventCountry "IND"]
[SourceTitle "playchess.com"]
[Source "ChessBase"]
[SourceQuality "1"]
[TimeControl "5400+30"]

1. e4 {[%emt 0:01:19]} c5 {[%emt 0:01:08]} 2. Nf3 {[%emt 0:00:04]} d6 {[%emt 0:00:07]} 3. c3 {[%emt 0:00:03]} Nf6 {[%emt 0:00:12]} 4. Be2 {[%emt 0:00:04]} Nbd7 {[%emt 0:00:17]} 5. d3 {[%emt 0:00:17]} b6 {[%emt 0:00:22]} 6. a4 {[%emt 0:00:05]} Bb7 {[%emt 0:00:05]} 7. Nbd2 {[%emt 0:00:05]} e6 {[%emt 0:00:06]} 8. O-O {[%emt 0:00:06]} Be7 {[%emt 0:00:10]} 9. a5 {[%emt 0:00:04]} Rc8 {[%emt 0:04:31]} 10. Qb3 {[%emt 0:01:09]} O-O {[%emt 0:01:41]} 11. Re1 {[%emt 0:00:27]} Re8 {[%emt 0:01:09]} 12. h3 {[%emt 0:00:10]} Qc7 {[%emt 0:08:27]} 13. Bf1 {[%emt 0:00:08]} Ne5 {[%emt 0:00:34]} 14. Nxe5 {[%emt 0:01:45]} dxe5 {[%emt 0:00:05]} 15. Nc4 {[%emt 0:00:03]} Nd7 {[%emt 0:00:07]} 16. Re3 {[%emt 0:00:26]} Bg5 {[%emt 0:09:37]} 17. Rf3 {[%emt 0:00:06]} Bxc1 {[%emt 0:00:24]} 18. Rxc1 {[%emt 0:00:03]} Ba6 {[%emt 0:02:07]} 19. axb6 {[%emt 0:02:45]} Bxc4 {[%emt 0:01:20]} 20. dxc4 {[%emt 0:00:03]} axb6 {[%emt 0:00:44]} 21. Bd3 {[%emt 0:00:06]} Nf8 {[%emt 0:00:46]} 22. Bc2 {[%emt 0:00:23]} Red8 {[%emt 0:00:34]} 23. h4 {[%emt 0:00:55]} Rd2 {[%emt 0:01:12]} 24. h5 {[%emt 0:02:26]} h6 {[%emt 0:00:05]} 25. Re3 {[%emt 0:00:40]} Rcd8 {[%emt 0:00:41]} 26. Bd1 {[%emt 0:00:15]} R8d3 {[%emt 0:07:10]} 27. Rxd3 {[%emt 0:04:53]} Rxd3 {[%emt 0:00:05]} 28. Ra1 {[%emt 0:01:00]} Qd8 {[%emt 0:01:21]} 29. g3 {[%emt 0:04:51]} Nh7 {[%emt 0:08:56]} 30. Be2 {[%emt 0:02:21]} Rd2 {[%emt 0:00:07]} 31. Kf1 {[%emt 0:02:41]} Nf6 {[%emt 0:05:50]} 32. Qb5 {[%emt 0:02:04]} Kh7 {[%emt 0:07:52]} 33. Qc6 {[%emt 0:21:59]} Rxb2 {[%emt 0:06:32]} 34. Rd1 {[%emt 0:01:12]} Rd2 {[%emt 0:00:17]} 35. Rxd2 {[%emt 0:02:19]} Qxd2 {[%emt 0:00:07]} 36. Qb7 {[%emt 0:02:40]} Qd7 {[%emt 0:04:14]} 37. Qa8 {[%emt 0:00:59]} Qe8 {[%emt 0:00:38]} 38. Qb7 {[%emt 0:00:10]} Qd7 {[%emt 0:00:16]} 39. Qa8 {[%emt 0:00:38]} Qe8 {[%emt 0:00:22]} 40. Qb7 {[%emt 0:00:12]} Qd7 {[%emt 0:00:53]} 1/2-1/2

[Event "2nd Gujarat Open 2019"]
[Site "Ahmedabad, Gujarat"]
[Date "2019.09.26"]
[Round "7.18"]
[White "Srihari L R"]
[Black "Barath Kalyan M"]
[Result "1-0"]
[ECO "E11"]
[WhiteElo "2283"]
[BlackElo "2092"]
[Annotator "NA"]
[PlyCount "99"]
[EventDate "2019.09.22"]
[EventType "swiss"]
[EventCountry "IND"]
[SourceTitle "playchess.com"]
[Source "ChessBase"]
[SourceQuality "1"]
[TimeControl "5400+30"]

1. d4 {[%emt 0:00:00]} Nf6 {[%emt 0:02:39]} 2. c4 {[%emt 0:00:49]} e6 {[%emt 0:00:12]} 3. Nf3 {[%emt 0:00:14]} Bb4+ {[%emt 0:00:07]} 4. Bd2 {[%emt 0:00:26]} a5 {[%emt 0:00:20]} 5. g3 {[%emt 0:00:21]} b6 {[%emt 0:00:15]} 6. Bg2 {[%emt 0:00:13]} Bb7 {[%emt 0:00:03]} 7. O-O {[%emt 0:00:19]} Bxd2 {[%emt 0:00:05]} 8. Qxd2 {[%emt 0:01:30]} d6 {[%emt 0:00:11]} 9. Nc3 {[%emt 0:00:18]} Nbd7 {[%emt 0:00:25]} 10. Qc2 {[%emt 0:07:26]} O-O {[%emt 0:01:17]} 11. e4 {[%emt 0:01:11]} e5 {[%emt 0:01:06]} 12. Rad1 {[%emt 0:11:27]} Qe7 {[%emt 0:03:23]} 13. Nd5 {[%emt 0:01:59]} Nxd5 {[%emt 0:04:05]} 14. cxd5 {[%emt 0:02:01]} Nb8 {[%emt 0:14:06]} 15. Rfe1 {[%emt 0:10:54]} Na6 {[%emt 0:03:39]} 16. a3 {[%emt 0:00:55]} Bc8 {[%emt 0:02:14]} 17. dxe5 {[%emt 0:04:25]} dxe5 {[%emt 0:00:21]} 18. Nd2 {[%emt 0:08:41]} Bd7 {[%emt 0:04:22]} 19. Nc4 {[%emt 0:05:41]} Nc5 {[%emt 0:08:04]} 20. Qc3 {[%emt 0:06:40]} f6 {[%emt 0:18:36]} 21. b3 {[%emt 0:07:00]} a4 {[%emt 0:04:51]} 22. b4 {[%emt 0:01:34]} Nb3 {[%emt 0:00:09]} 23. f4 {[%emt 0:06:19]} Bg4 {[%emt 0:04:12]} 24. Rd3 {[%emt 0:02:03]} Nd4 {[%emt 0:01:44]} 25. Rxd4 {[%emt 0:01:20]} exd4 {[%emt 0:00:05]} 26. Qxd4 {[%emt 0:00:05]} Rad8 {[%emt 0:02:31]} 27. Ne3 {[%emt 0:01:43]} Bd7 28. Rc1 {[%emt 0:01:41]} Rc8 {[%emt 0:11:01]} 29. Rc2 {[%emt 0:05:12]} Rfe8 {[%emt 0:00:54]} 30. h4 {[%emt 0:02:32]} Kh8 {[%emt 0:02:27]} 31. Kh2 {[%emt 0:02:35]} b5 {[%emt 0:01:59]} 32. Qc5 {[%emt 0:02:21]} Qd6 {[%emt 0:00:17]} 33. Rc3 {[%emt 0:00:32]} g6 {[%emt 0:03:06]} 34. Nc2 {[%emt 0:01:18]} g5 {[%emt 0:02:16]} 35. hxg5 {[%emt 0:00:16]} fxg5 {[%emt 0:00:06]} 36. Qd4+ {[%emt 0:00:03]} Kg8 {[%emt 0:00:20]} 37. e5 {[%emt 0:00:48]} Qh6+ {[%emt 0:00:21]} 38. Kg1 {[%emt 0:00:01]} Bh3 {[%emt 0:01:03]} 39. fxg5 {[%emt 0:01:28]} Qh5 {[%emt 0:00:34]} 40. g4 {[%emt 0:00:57]} Bxg4 {[%emt 0:01:20]} 41. Rg3 {[%emt 0:00:05]} Bf5 {[%emt 0:01:35]} 42. Ne3 {[%emt 0:00:09]} Qg6 {[%emt 0:01:09]} 43. e6 {[%emt 0:01:30]} Bd3 {[%emt 0:03:21]} 44. Ng4 {[%emt 0:00:24]} Bf5 {[%emt 0:00:36]} 45. Nh6+ {[%emt 0:00:18]} Kf8 {[%emt 0:00:29]} 46. Nxf5 {[%emt 0:01:17]} Kg8 {[%emt 0:00:10]} 47. Nh6+ {[%emt 0:00:10]} Kf8 {[%emt 0:00:07]} 48. Qf6+ {[%emt 0:00:03]} Qxf6 {[%emt 0:00:11]} 49. gxf6 {[%emt 0:00:04]} Rb8 {[%emt 0:00:09]} 50. Rg8# 1-0

[Event "2nd Gujarat Open 2019"]
[Site "Ahmedabad, Gujarat"]
[Date "2019.09.26"]
[Round "7.19"]
[White "Pranav, Shetty"]
[Black "Nikhil Magizhnan"]
[Result "1/2-1/2"]
[ECO "C11"]
[WhiteElo "2124"]
[BlackElo "2251"]
[Annotator "NA"]
[PlyCount "61"]
[EventDate "2019.09.22"]
[EventType "swiss"]
[EventCountry "IND"]
[SourceTitle "playchess.com"]
[Source "ChessBase"]
[SourceQuality "1"]
[TimeControl "5400+30"]

1. e4 {[%emt 0:01:47]} e6 {[%emt 0:00:01]} 2. d4 {[%emt 0:00:04]} d5 {[%emt 0:00:18]} 3. Nc3 {[%emt 0:00:05]} Nf6 {[%emt 0:00:06]} 4. e5 {[%emt 0:00:38]} Nfd7 {[%emt 0:00:07]} 5. f4 {[%emt 0:00:05]} c5 {[%emt 0:00:24]} 6. Nf3 {[%emt 0:00:05]} a6 {[%emt 0:00:08]} 7. Be3 {[%emt 0:02:43]} Qb6 {[%emt 0:00:43]} 8. a3 {[%emt 0:22:15]} Nc6 {[%emt 0:01:35]} 9. Be2 {[%emt 0:00:39]} Qa7 {[%emt 0:02:20]} 10. Qd2 {[%emt 0:02:25]} b5 {[%emt 0:10:08]} 11. O-O {[%emt 0:04:23]} cxd4 {[%emt 0:01:17]} 12. Nxd4 {[%emt 0:00:07]} Bc5 {[%emt 0:01:11]} 13. Rad1 {[%emt 0:00:18]} g5 {[%emt 0:04:08]} 14. g3 {[%emt 0:05:31]} Bb7 {[%emt 0:16:10]} 15. Rfe1 {[%emt 0:00:30]} gxf4 {[%emt 0:00:30]} 16. gxf4 {[%emt 0:00:30]} Rg8+ 17. Kf2 {[%emt 0:29:10]} O-O-O {[%emt 0:01:00]} 18. b4 {[%emt 0:04:20]} Bb6 {[%emt 0:09:39]} 19. a4 {[%emt 0:00:50]} f6 {[%emt 0:04:02]} 20. exf6 {[%emt 0:08:58]} Nxf6 {[%emt 0:03:21]} 21. axb5 {[%emt 0:01:44]} Nxd4 {[%emt 0:00:30]} 22. Bxd4 {[%emt 0:00:04]} e5 {[%emt 0:05:33]} 23. fxe5 {[%emt 0:00:20]} Ng4+ {[%emt 0:00:44]} 24. Kg2 {[%emt 0:06:28]} Rdf8 {[%emt 0:26:23]} 25. h3 {[%emt 0:00:05]} Ne3+ {[%emt 0:01:14]} 26. Kh1 {[%emt 0:02:44]} Rg3 {[%emt 0:04:17]} 27. Kh2 {[%emt 0:02:27]} Rg2+ {[%emt 0:00:54]} 28. Kh1 {[%emt 0:00:01]} Rg3 {[%emt 0:00:01]} 29. Kh2 {[%emt 0:00:01]} Rg2+ {[%emt 0:05:56]} 30. Kh1 {[%emt 0:00:02]} Rg3 {[%emt 0:01:37]} 31. Kh2 {[%emt 0:00:38]} 1/2-1/2

[Event "2nd Gujarat Open 2019"]
[Site "Ahmedabad, Gujarat"]
[Date "2019.09.26"]
[Round "7.20"]
[White "Sri Sai Baswanth P"]
[Black "Ziatdinov, Raset"]
[Result "0-1"]
[ECO "A20"]
[WhiteElo "2013"]
[BlackElo "2222"]
[Annotator "NA"]
[PlyCount "92"]
[EventDate "2019.09.22"]
[EventType "swiss"]
[EventCountry "IND"]
[SourceTitle "playchess.com"]
[Source "ChessBase"]
[SourceQuality "1"]
[TimeControl "5400+30"]

1. c4 {[%emt 0:00:00]} e5 {[%emt 0:00:00]} 2. g3 {[%emt 0:00:06]} f5 {[%emt 0:00:00]} 3. Nc3 {[%emt 0:05:37]} Nf6 {[%emt 0:00:00]} 4. Bg2 {[%emt 0:00:06]} Be7 {[%emt 0:00:07]} 5. d4 {[%emt 0:01:48]} e4 {[%emt 0:00:07]} 6. Nh3 {[%emt 0:00:24]} O-O {[%emt 0:00:30]} 7. O-O {[%emt 0:00:34]} Nc6 {[%emt 0:00:39]} 8. Nf4 {[%emt 0:08:55]} Qe8 {[%emt 0:06:04]} 9. Nfd5 {[%emt 0:03:58]} Bd8 {[%emt 0:01:02]} 10. Nb5 {[%emt 0:05:08]} Nxd5 {[%emt 0:00:41]} 11. cxd5 {[%emt 0:00:04]} Ne7 {[%emt 0:01:21]} 12. d6 {[%emt 0:01:00]} cxd6 {[%emt 0:08:28]} 13. Nxd6 {[%emt 0:02:21]} Qg6 {[%emt 0:00:27]} 14. Bf4 {[%emt 0:10:17]} Nd5 {[%emt 0:05:54]} 15. Qb3 {[%emt 0:20:24]} Qe6 {[%emt 0:00:30]} 16. Rfc1 {[%emt 0:00:30]} Be7 {[%emt 0:00:30]} 17. Nxc8 {[%emt 0:00:30]} Raxc8 {[%emt 0:24:11]} 18. Qxb7 {[%emt 0:00:23]} Rce8 {[%emt 0:10:34]} 19. Bc7 {[%emt 0:18:04]} f4 {[%emt 0:06:00]} 20. gxf4 {[%emt 0:04:16]} Nxf4 {[%emt 0:06:55]} 21. Bxf4 {[%emt 0:00:29]} Rxf4 {[%emt 0:00:03]} 22. Rc8 {[%emt 0:02:15]} Rxc8 {[%emt 0:02:16]} 23. Qxc8+ {[%emt 0:01:31]} Rf8 {[%emt 0:00:03]} 24. Qc3 {[%emt 0:00:22]} d5 {[%emt 0:03:11]} 25. Qe3 {[%emt 0:05:28]} Bd6 {[%emt 0:01:04]} 26. Qh3 {[%emt 0:00:28]} Qf6 {[%emt 0:06:14]} 27. Rf1 {[%emt 0:00:07]} Kh8 {[%emt 0:01:21]} 28. e3 {[%emt 0:00:08]} Qd8 {[%emt 0:09:09]} 29. Rc1 {[%emt 0:04:27]} h6 {[%emt 0:01:10]} 30. Qe6 {[%emt 0:02:05]} Kh7 {[%emt 0:00:45]} 31. Bh3 {[%emt 0:02:31]} Qg5+ {[%emt 0:02:37]} 32. Qg4 {[%emt 0:00:15]} Qf6 {[%emt 0:00:24]} 33. Rf1 {[%emt 0:00:38]} Bb8 {[%emt 0:00:16]} 34. Kh1 {[%emt 0:00:35]} Qd6 {[%emt 0:00:35]} 35. Qg2 {[%emt 0:00:08]} g6 {[%emt 0:01:15]} 36. Rc1 {[%emt 0:01:07]} Qa6 {[%emt 0:01:43]} 37. Qg4 {[%emt 0:00:46]} Rf7 {[%emt 0:01:00]} 38. a3 {[%emt 0:00:42]} Qd6 {[%emt 0:00:40]} 39. Qg2 {[%emt 0:00:14]} h5 {[%emt 0:00:21]} 40. Rf1 {[%emt 0:00:40]} Rf3 {[%emt 0:00:41]} 41. Bc8 {[%emt 0:00:15]} g5 {[%emt 0:00:38]} 42. Bb7 {[%emt 0:00:38]} g4 {[%emt 0:00:16]} 43. Rc1 {[%emt 0:00:12]} Rh3 {[%emt 0:00:17]} 44. Kg1 {[%emt 0:00:34]} Rxh2 {[%emt 0:00:30]} 45. Qg3 {[%emt 0:00:24]} Qd8 {[%emt 0:00:09]} 46. Rc8 {[%emt 0:00:44]} Qxc8 {[%emt 0:00:06]} 0-1

[Event "2nd Gujarat Open 2019"]
[Site "Ahmedabad, Gujarat"]
[Date "2019.09.26"]
[Round "7.21"]
[White "Gandhi, Anish"]
[Black "Liyanage, Ranindu Dilshan"]
[Result "0-1"]
[ECO "B90"]
[WhiteElo "2201"]
[BlackElo "1956"]
[Annotator "NA"]
[PlyCount "62"]
[EventDate "2019.09.22"]
[EventType "swiss"]
[EventCountry "IND"]
[SourceTitle "playchess.com"]
[Source "ChessBase"]
[SourceQuality "1"]
[TimeControl "5400+30"]

1. e4 {[%emt 0:00:00]} c5 {[%emt 0:00:00]} 2. Nf3 {[%emt 0:00:00]} d6 {[%emt 0:00:00]} 3. d4 {[%emt 0:00:00]} cxd4 {[%emt 0:00:00]} 4. Nxd4 {[%emt 0:00:09]} Nf6 {[%emt 0:00:03]} 5. Nc3 {[%emt 0:00:06]} a6 {[%emt 0:00:04]} 6. h3 {[%emt 0:02:05]} e5 {[%emt 0:00:23]} 7. Nb3 {[%emt 0:00:07]} Be6 {[%emt 0:02:47]} 8. f4 {[%emt 0:00:07]} Nc6 {[%emt 0:01:15]} 9. f5 {[%emt 0:00:55]} Bxb3 {[%emt 0:00:55]} 10. axb3 {[%emt 0:00:13]} d5 {[%emt 0:01:00]} 11. exd5 {[%emt 0:01:08]} Nb4 {[%emt 0:03:22]} 12. Bg5 {[%emt 0:10:17]} Be7 {[%emt 0:09:05]} 13. Bc4 {[%emt 0:09:49]} Qb6 {[%emt 0:06:31]} 14. Qe2 {[%emt 0:04:18]} O-O {[%emt 0:01:15]} 15. O-O-O {[%emt 0:00:36]} Qa5 {[%emt 0:02:27]} 16. Kb1 {[%emt 0:05:30]} b5 17. d6 {[%emt 0:00:30]} Bd8 18. Bd3 {[%emt 0:00:30]} Rc8 19. h4 Nfd5 20. Nxd5 Qa2+ 21. Kc1 Nxd5 22. Bxd8 Nf4 23. Qxe5 Nxd3+ 24. Rxd3 Qa1+ 25. Kd2 Qxh1 26. Rg3 g6 27. Bf6 Qf1 28. c3 Qf2+ 29. Kc1 Rc5 30. Qd4 Qf1+ 31. Kd2 Rxf5 0-1